fUSD/lending_fUSD_20250820
["ID","MTS","AMOUNT","RATE_DAILY","PERIOD"]
[380359403,1755704125911,-642.67,0.00030136,120]
[380359404,1755704125959,-400.0,0.00030136,120]
[380359405,1755704126007,-1329.88,0.00030136,120]
[380359406,1755704126061,-707.72,0.00030136,120]
[380359407,1755704126113,-400.0,0.00030136,120]
[380359408,1755704126165,-458.69,0.00030136,120]
[380359409,1755704126219,-400.0,0.00030136,120]
[380359410,1755704126272,-400.0,0.00030136,120]
[380359411,1755704126326,-947.76,0.00030136,120]
[380359412,1755704126375,-169.14953653,0.00030136,120]
[380359413,1755704126425,-400.0,0.00030136,120]
[380359414,1755704126475,-947.19,0.00030136,120]
[380359415,1755704126524,-1105.82,0.00030136,120]
[380359416,1755704126577,-417.42,0.00030136,120]
[380359417,1755704126627,-400.0,0.00030136,120]
[380359418,1755704126677,-1921.22,0.00030136,120]
[380359419,1755704126726,-744.46,0.00030136,120]
[380359420,1755704126777,-400.0,0.00030136,120]
[380359421,1755704126827,-400.0,0.00030136,120]
[380359422,1755704126881,-544.14,0.00030136,120]
[380359423,1755704126930,-400.0,0.00030136,120]
[380359424,1755704126979,-400.0,0.00030136,120]
[380359425,1755704127026,-625.19,0.00030136,120]
[380359426,1755704127077,-826.39,0.00030136,120]
[380359427,1755704127125,-958.45,0.00030136,120]
[380359428,1755704127181,-1083.72,0.00030136,120]
[380359429,1755704127238,-893.19,0.00030136,120]
[380359430,1755704127297,-400.0,0.00030136,120]
[380359431,1755704127353,-822.15,0.00030136,120]
[380359432,1755704127410,-636.12,0.00030136,120]
[380359433,1755704127465,-400.0,0.00030136,120]
[380359434,1755704127520,-416.29,0.00030136,120]
[380359435,1755704127570,-400.0,0.00030136,120]
[380359436,1755704127620,-1496.61,0.00030136,120]
[380359437,1755704127666,-400.0,0.00030136,120]
[380359438,1755704127716,-1331.76,0.00030136,120]
[380359439,1755704127763,-400.0,0.00030136,120]
[380359440,1755704127811,-545.1,0.00030136,120]
[380359441,1755704127859,-400.0,0.00030136,120]
[380359442,1755704127909,-514.34,0.00030136,120]
[380359443,1755704127959,-727.59,0.00030136,120]
[380359444,1755704128010,-400.0,0.00030136,120]
[380359445,1755704128377,-448.97,0.00030136,120]
[380359446,1755704128434,-400.0,0.00030136,120]
[380359447,1755704128500,-400.0,0.00030136,120]
[380359448,1755704128566,-879.01,0.00030136,120]
[380359449,1755704128621,-850.01,0.00030136,120]
[380359450,1755704128674,-400.0,0.00030136,120]
[380359451,1755704128727,-416.12,0.00030136,120]
[380359452,1755704128778,-452.87,0.00030136,120]
[380359453,1755704128828,-644.15,0.00030136,120]
[380359454,1755704128880,-843.65,0.00030136,120]
[380359455,1755704128928,-400.0,0.00030136,120]
[380359456,1755704128979,-1515.72,0.00030136,120]
[380359457,1755704129025,-973.86,0.00030136,120]
[380359458,1755704129078,-1271.89,0.00030136,120]
[380359459,1755704129131,-400.0,0.00030136,120]
[380359460,1755704129183,-400.0,0.00030136,120]
[380359461,1755704129236,-757.1,0.00030136,120]
[380359462,1755704129289,-400.0,0.00030136,120]
[380359463,1755704129339,-400.0,0.00030136,120]
[380359464,1755704129397,-705.67,0.00030136,120]
[380359465,1755704129450,-400.0,0.00030136,120]
[380359466,1755704129504,-400.0,0.00030136,120]
[380359467,1755704129555,-400.0,0.00030136,120]
[380359468,1755704129611,-1534.53,0.00030136,120]
[380359469,1755704129661,-1358.41,0.00030136,120]
[380359470,1755704129713,-400.0,0.00030136,120]
[380359471,1755704129761,-400.0,0.00030136,120]
[380359472,1755704129809,-605.11,0.00030136,120]
[380359473,1755704129860,-922.44,0.00030136,120]
[380359474,1755704129907,-986.88,0.00030136,120]
[380359475,1755704129958,-802.83,0.00030136,120]
[380359476,1755704130010,-1238.48,0.00030136,120]
[380359477,1755704130063,-838.78,0.00030136,120]
[380359478,1755704130113,-400.0,0.00030136,120]
[380359479,1755704130165,-179.93841068,0.00030136,120]
[380359480,1755704130217,-400.0,0.00030136,120]
[380359481,1755704130268,-423.93,0.00030136,120]
[380359482,1755704130317,-400.0,0.00030136,120]
[380359483,1755704130369,-400.0,0.00030136,120]
[380359484,1755704130419,-1334.54,0.00030136,120]
[380359485,1755704130470,-528.04,0.00030136,120]
[380359486,1755704130519,-400.0,0.00030136,120]
[380359487,1755704130572,-912.37,0.00030136,120]
[380359488,1755704130624,-673.26,0.00030136,120]
[380359489,1755704130678,-400.0,0.00030136,120]
[380359490,1755704130730,-847.82,0.00030136,120]
[380359491,1755704130782,-400.0,0.00030136,120]
[380359492,1755704130834,-1084.22,0.00030136,120]
[380359493,1755704130886,-768.89,0.00030136,120]
[380359494,1755704130939,-439.64,0.00030136,120]
[380359495,1755704130990,-400.0,0.00030136,120]
[380359496,1755704131048,-730.88,0.00030136,120]
[380359497,1755704131104,-401.93,0.00030136,120]
[380359498,1755704131157,-471.05,0.00030136,120]
[380359499,1755704131207,-1390.68,0.00030136,120]
[380359500,1755704131259,-400.0,0.00030136,120]
[380359501,1755704131310,-1125.65,0.00030136,120]
[380359502,1755704131363,-670.57,0.00030136,120]
[380359503,1755704131412,-400.0,0.00030136,120]
[380359504,1755704131463,-400.0,0.00030136,120]
[380359505,1755704131511,-400.0,0.00030136,120]
[380359506,1755704131561,-400.0,0.00030136,120]
[380359507,1755704131608,-400.0,0.00030136,120]
[380359508,1755704131659,-400.0,0.00030136,90]
[380359509,1755704131710,-1510.78,0.00030136,120]
[380359510,1755704131761,-496.19,0.00030136,120]
[380359511,1755704131813,-688.09,0.00030136,120]
[380359512,1755704131863,-1607.08,0.00030136,120]
[380359513,1755704131914,-498.86,0.00030136,120]
[380359514,1755704131962,-877.86,0.00030136,120]
[380359515,1755704132022,-400.0,0.00030136,120]
[380359516,1755704132076,-852.83,0.00030136,120]
[380359517,1755704132132,-400.95918657,0.00030136,120]
[380359518,1755704132189,-400.0,0.00030136,120]
[380359519,1755704132239,-1096.38,0.00030136,120]
[380359520,1755704132291,-1665.58,0.00030136,120]
[380359521,1755704132338,-400.0,0.00030136,120]
[380359522,1755704132398,-400.0,0.00030136,120]
[380359523,1755704132462,-1657.55,0.00030136,120]
[380359524,1755704132517,-557.31,0.00030136,120]
[380359525,1755704132566,-1579.42,0.00030136,120]
[380359526,1755704132619,-1021.36,0.00030136,120]
[380359527,1755704132672,-176.32346732,0.00030136,120]
[380359528,1755704132734,-400.0,0.00030136,120]
[380359529,1755704132790,-1057.27,0.00030136,120]
[380359530,1755704132850,-500.0,0.00030136,120]
[380359531,1755704132902,-500.0,0.00030136,120]
[380359532,1755704132952,-1474.2,0.00030136,120]
[380359533,1755704133001,-500.0,0.00030136,120]
[380359534,1755704133050,-500.0,0.00030136,120]
[380359535,1755704133104,-1352.57,0.00030136,120]
[380359536,1755704133161,-400.0,0.00030136,120]
[380359537,1755704133216,-1105.23,0.00030136,120]
[380359538,1755704133273,-400.0,0.00030136,120]
[380359539,1755704133328,-493.68,0.00030136,120]
[380359540,1755704133384,-1782.03,0.00030136,120]
[380359541,1755704133436,-965.23,0.00030136,120]
[380359542,1755704133491,-400.0,0.00030136,120]
[380359543,1755704133544,-1191.69,0.00030136,120]
[380359544,1755704133599,-400.0,0.00030136,120]
[380359545,1755704133654,-400.0,0.00030136,120]
[380359546,1755704133710,-1236.06,0.00030136,120]
[380359547,1755704133762,-710.4,0.00030136,120]
[380359548,1755704133817,-622.1,0.00030136,120]
[380359549,1755704133871,-400.0,0.00030136,120]
[380359550,1755704133925,-1455.49,0.00030136,120]
[380359551,1755704133985,-400.0,0.00030136,120]
[380359552,1755704134038,-400.0,0.00030136,120]
[380359553,1755704134091,-1482.4,0.00030136,120]
[380359554,1755704134146,-726.11,0.00030136,120]
[380359555,1755704134203,-568.98,0.00030136,120]
[380359556,1755704134256,-400.0,0.00030136,120]
[380359557,1755704134309,-400.0,0.00030136,120]
[380359558,1755704134361,-725.78,0.00030136,120]
[380359559,1755704134751,-400.0,0.00030136,120]
[380359560,1755704134806,-742.4,0.00030136,120]
[380359561,1755704134859,-1620.77,0.00030136,120]
[380359562,1755704134911,-1540.51,0.00030136,120]
[380359563,1755704134961,-400.0,0.00030136,120]
[380359564,1755704135014,-1235.98,0.00030136,60]
[380359565,1755704135068,-1261.05,0.00030136,120]
[380359566,1755704135122,-791.37,0.00030136,120]
[380359567,1755704135176,-400.0,0.00030136,120]
[380359568,1755704135233,-596.72,0.00030136,120]
[380359569,1755704135288,-1354.48,0.00030136,120]
[380359570,1755704135349,-608.01,0.00030136,120]
[380359571,1755704135407,-935.72,0.00030136,120]
[380359572,1755704135462,-400.0,0.00030136,120]
[380359573,1755704135519,-519.59,0.00030136,120]
[380359574,1755704135573,-419.69,0.00030136,120]
[380359575,1755704135629,-632.71,0.00030136,120]
[380359576,1755704135683,-717.82,0.00030136,120]
[380359577,1755704135741,-2195.75,0.00030136,120]
[380359578,1755704135793,-400.0,0.00030136,120]
[380359579,1755704135846,-400.0,0.00030136,120]
[380359580,1755704135898,-1097.88,0.00030136,120]
[380359581,1755704135951,-400.0,0.00030136,120]
[380359582,1755704136003,-1484.52,0.00030136,120]
[380359583,1755704136055,-1392.06,0.00030136,120]
[380359584,1755704136110,-1426.98,0.00030136,120]
[380359585,1755704136164,-400.0,0.00030136,120]
[380359586,1755704136222,-910.53,0.00030136,120]
[380359587,1755704136276,-706.27,0.00030136,120]
[380359588,1755704136332,-493.84,0.00030136,120]
[380359589,1755704136386,-622.41,0.00030136,120]
[380359590,1755704136441,-1240.21,0.00030136,120]
[380359591,1755704136493,-1031.32,0.00030136,120]
[380359592,1755704136546,-400.0,0.00030136,120]
[380359593,1755704136598,-648.93,0.00030136,120]
[380359594,1755704136652,-1213.89,0.00030136,120]
[380359595,1755704136702,-400.0,0.00030136,120]
[380359596,1755704136755,-400.0,0.00030136,120]
[380359597,1755704136808,-434.76,0.00030136,120]
[380359598,1755704136860,-400.0,0.00030136,120]
[380359599,1755704136910,-446.49,0.00030136,120]
[380359600,1755704136961,-2126.31,0.00030136,120]
[380359601,1755704137014,-681.69,0.00030136,120]
[380359602,1755704137072,-509.89,0.00030136,120]
[380359603,1755704137123,-400.0,0.00030136,120]
[380359604,1755704137177,-400.0,0.00030136,120]
[380359605,1755704137228,-400.0,0.00030136,120]
[380359606,1755704137283,-904.95,0.00030136,120]
[380359607,1755704137335,-500.0,0.00030136,120]
[380359608,1755704137388,-797.56,0.00030136,120]
[380359609,1755704137437,-1316.41,0.00030136,120]
[380359610,1755704137490,-604.52,0.00030136,120]
[380359611,1755704137548,-513.08662013,0.00030136,120]
[380359612,1755704137601,-400.0,0.00030136,120]
[380359613,1755704137656,-2249.71,0.00030136,120]
[380359614,1755704137708,-656.33,0.00030136,120]
[380359615,1755704137758,-1514.67,0.00030136,120]
[380359616,1755704137806,-683.65,0.00030136,120]
[380359617,1755704137856,-429.1018783,0.00030136,120]
[380359618,1755704137905,-770.36,0.00030136,120]
[380359619,1755704137954,-499.04068688,0.00030136,120]
[380359620,1755704138002,-545.94,0.00030136,120]
[380359621,1755704138053,-400.0,0.00030136,120]
[380359622,1755704138103,-871.96,0.00030136,120]
[380359623,1755704138158,-400.0,0.00030136,120]
[380359624,1755704138212,-1610.85,0.00030136,120]
[380359625,1755704138267,-489.56,0.00030136,120]
[380359626,1755704138320,-400.0,0.00030136,120]
[380359627,1755704138371,-1414.93,0.00030136,120]
[380359628,1755704138420,-1192.37,0.00030136,120]
[380359629,1755704138469,-423.13,0.00030136,120]
[380359630,1755704138519,-990.05,0.00030136,120]
[380359631,1755704138566,-400.0,0.00030136,120]
[380359632,1755704138617,-400.0,0.00030136,120]
[380359633,1755704138666,-798.49,0.00030136,120]
[380359634,1755704138717,-1094.05,0.00030136,120]
[380359635,1755704138764,-400.0,0.00030136,120]
[380359636,1755704138812,-400.0,0.00030136,120]
[380359637,1755704138859,-1866.42,0.00030136,120]
[380359638,1755704138906,-669.21,0.00030136,120]
[380359639,1755704138963,-437.13,0.00030136,120]
[380359640,1755704139016,-400.0,0.00030136,120]
[380359641,1755704139066,-1165.24,0.00030136,120]
[380359642,1755704139120,-1131.91,0.00030136,120]
[380359643,1755704139173,-400.0,0.00030136,120]
[380359644,1755704139228,-1082.74,0.00030136,120]
[380359645,1755704139282,-761.12,0.00030136,120]
[380359646,1755704139341,-400.0,0.00030136,120]
[380359647,1755704139396,-1025.54,0.00030136,120]
[380359648,1755704139448,-400.0,0.00030136,120]
[380359649,1755704139499,-400.0,0.00030136,120]
[380359650,1755704139550,-1107.64,0.00030136,120]
[380359651,1755704139599,-988.53,0.00030136,120]
[380359652,1755704139652,-783.62,0.00030136,120]
[380359653,1755704139701,-1566.11,0.00030136,120]
[380359654,1755704139753,-973.51,0.00030136,120]
[380359655,1755704139803,-400.0,0.00030136,120]
[380359656,1755704139858,-400.0,0.00030136,120]
[380359657,1755704139911,-400.0,0.00030136,120]
[380359658,1755704139966,-1437.7,0.00030136,120]
[380359659,1755704140020,-410.01,0.00030136,120]
[380359660,1755704140074,-2027.14,0.00030136,120]
[380359661,1755704140127,-400.0,0.00030136,120]
[380359662,1755704140180,-2106.18,0.00030136,120]
[380359663,1755704140236,-1334.88,0.00030136,120]
[380359664,1755704140290,-1068.77,0.00030136,120]
[380359665,1755704140341,-400.0,0.00030136,120]
[380359666,1755704140395,-1044.09,0.00030136,120]
[380359667,1755704140443,-517.33,0.00030136,120]
[380359668,1755704140494,-400.74,0.00030136,120]
[380359669,1755704140544,-1847.89,0.00030136,120]
[380359670,1755704140602,-1164.31,0.00030136,120]
[380359671,1755704140670,-1081.05,0.00030136,120]
[380359672,1755704140727,-1429.52,0.00030136,120]
[380359673,1755704140779,-935.17,0.00030136,120]
[380359674,1755704141310,-400.0,0.00030136,120]
[380359675,1755704141372,-1032.41,0.00030136,120]
[380359676,1755704141422,-400.0,0.00030136,120]
[380359677,1755704141474,-1075.23,0.00030136,120]
[380359678,1755704141524,-400.0,0.00030136,120]
[380359679,1755704141575,-400.0,0.00030136,120]
[380359680,1755704141627,-812.94,0.00030136,120]
[380359681,1755704141676,-1344.41,0.00030136,120]
[380359682,1755704141728,-400.0,0.00030136,120]
[380359683,1755704141776,-1754.93,0.00030136,120]
[380359684,1755704141832,-606.67,0.00030136,120]
[380359685,1755704141880,-2032.33,0.00030136,120]
[380359686,1755704141928,-400.0,0.00030136,120]
[380359687,1755704141975,-400.0,0.00030136,120]
[380359688,1755704142027,-400.0,0.00030136,120]
[380359689,1755704142078,-400.0,0.00030136,120]
[380359690,1755704142130,-639.29,0.00030136,120]
[380359691,1755704142187,-2642.61,0.00030136,120]
[380359692,1755704142243,-500.17,0.00030136,120]
[380359693,1755704142302,-1094.83,0.00030136,120]
[380359694,1755704142357,-669.26,0.00030136,120]
[380359695,1755704142413,-732.92,0.00030136,120]
[380359696,1755704142465,-1881.83,0.00030136,120]
[380359697,1755704142517,-400.0,0.00030136,120]
[380359698,1755704142569,-1508.63,0.00030136,120]
[380359699,1755704142628,-761.4,0.00030136,120]
[380359700,1755704142690,-333.72977777,0.00030136,120]
[380359701,1755704142754,-1828.49,0.00030136,120]
[380359702,1755704142812,-1336.85,0.00030136,120]
[380359703,1755704142867,-400.0,0.00030136,120]
[380359704,1755704142920,-400.0,0.00030136,120]
[380359705,1755704142977,-400.0,0.00030136,120]
[380359706,1755704143030,-248.10799456,0.00030136,120]
[380359707,1755704143087,-400.0,0.00030136,120]
[380359708,1755704143141,-400.0,0.00030136,120]
[380359709,1755704143198,-400.0,0.00030136,120]
[380359710,1755704143258,-400.0,0.00030136,120]
[380359711,1755704143320,-427.33,0.00030136,120]
[380359712,1755704143378,-400.0,0.00030136,120]
[380359713,1755704143435,-400.0,0.00030136,120]
[380359714,1755704143496,-1543.09,0.00030136,120]
[380359715,1755704143553,-400.0,0.00030136,120]
[380359716,1755704143612,-400.0,0.00030136,120]
[380359717,1755704143671,-1045.19,0.00030136,120]
[380359718,1755704143727,-400.0,0.00030136,120]
[380359719,1755704143783,-1529.96,0.00030136,120]
[380359720,1755704143836,-1579.2,0.00030136,120]
[380359721,1755704143890,-1002.76,0.00030136,120]
[380359722,1755704143944,-659.05,0.00030136,120]
[380359723,1755704143998,-413.4,0.00030136,120]
[380359724,1755704144051,-400.0,0.00030136,120]
[380359725,1755704144104,-400.0,0.00030136,120]
[380359726,1755704144160,-400.0,0.00030136,120]
[380359727,1755704144215,-886.53,0.00030136,120]
[380359728,1755704144270,-793.9,0.00030136,120]
[380359729,1755704144323,-400.0,0.00030136,120]
[380359730,1755704144379,-986.8,0.00030136,120]
[380359731,1755704144429,-400.0,0.00030136,120]
[380359732,1755704144481,-400.0,0.00030136,120]
[380359733,1755704144534,-618.11,0.00030136,120]
[380359734,1755704144588,-1594.74,0.00030136,120]
[380359735,1755704144638,-400.0,0.00030136,120]
[380359736,1755704144691,-898.93,0.00030136,120]
[380359737,1755704144745,-1378.0,0.00030136,120]
[380359738,1755704144800,-400.0,0.00030136,120]
[380359739,1755704144851,-2178.59,0.00030136,120]
[380359740,1755704144908,-669.63,0.00030136,120]
[380359741,1755704144960,-400.0,0.00030136,120]
[380359742,1755704145016,-758.69,0.00030136,120]
[380359743,1755704145081,-400.0,0.00030136,120]
[380359744,1755704145148,-1782.97,0.00030136,120]
[380359745,1755704145216,-400.0,0.00030136,120]
[380359746,1755704145275,-873.12,0.00030136,120]
[380359747,1755704145328,-1265.56,0.00030136,120]
[380359748,1755704145384,-400.0,0.00030136,120]
[380359749,1755704145437,-400.0,0.00030136,120]
[380359750,1755704145494,-400.0,0.00030136,120]
[380359751,1755704145545,-1408.06,0.00030136,120]
[380359752,1755704145598,-400.0,0.00030136,120]
[380359753,1755704145647,-894.97,0.00030136,120]
[380359754,1755704145700,-400.0,0.00030136,120]
[380359755,1755704145751,-499.98,0.00030136,120]
[380359756,1755704145802,-1516.1,0.00030136,120]
[380359757,1755704145851,-568.57,0.00030136,120]
[380359758,1755704145905,-1076.16,0.00030136,120]
[380359759,1755704145954,-1592.07,0.00030136,90]
[380359760,1755704146008,-735.01,0.00030136,120]
[380359761,1755704146067,-1251.82,0.00030136,120]
[380359762,1755704146129,-1621.96,0.00030136,120]
[380359763,1755704146187,-517.32,0.00030136,120]
[380359764,1755704146247,-401.32469918,0.00030136,120]
[380359765,1755704146304,-1262.51,0.00030136,120]
[380359766,1755704146366,-928.34,0.00030136,120]
[380359767,1755704146423,-1369.25,0.00030136,120]
[380359768,1755704146478,-400.0,0.00030136,120]
[380359769,1755704146528,-400.0,0.00030136,120]
[380359770,1755704146581,-400.0,0.00030136,120]
[380359771,1755704146629,-400.0,0.00030136,120]
[380359772,1755704146682,-1324.59,0.00030136,120]
[380359773,1755704146730,-518.29,0.00030136,120]
[380359774,1755704146781,-1463.66,0.00030136,120]
[380359775,1755704146829,-405.99,0.00030136,120]
[380359776,1755704146879,-967.0,0.00030136,120]
[380359777,1755704146925,-917.08,0.00030136,120]
[380359778,1755704146974,-2119.93,0.00030136,120]
[380359779,1755704147026,-400.0,0.00030136,120]
[380359780,1755704147076,-724.47,0.00030136,120]
[380359781,1755704147128,-1445.47,0.00030136,120]
[380359782,1755704147177,-400.0,0.00030136,120]
[380359783,1755704147231,-1061.13,0.00030136,120]
[380359784,1755704147286,-1207.43,0.00030136,120]
[380359785,1755704147341,-1483.2,0.00030136,120]
[380359786,1755704147395,-400.0,0.00030136,120]
[380359787,1755704147453,-400.0,0.00030136,120]
[380359788,1755704147506,-400.0,0.00030136,120]
[380359789,1755704147889,-428.84,0.00030136,120]
[380359790,1755704147940,-1210.13,0.00030136,120]
[380359791,1755704147991,-599.69,0.00030136,120]
[380359792,1755704148040,-400.0,0.00030136,120]
[380359793,1755704148089,-740.49,0.00030136,120]
[380359794,1755704148139,-1064.64,0.00030136,120]
[380359795,1755704148195,-434.08,0.00030136,120]
[380359796,1755704148252,-1525.7,0.00030136,120]
[380359797,1755704148303,-415.31386014,0.00030136,120]
[380359798,1755704148358,-833.53,0.00030136,120]
[380359799,1755704148404,-816.7,0.00030136,120]
[380359800,1755704148454,-1407.72,0.00030136,120]
[380359801,1755704148503,-400.0,0.00030136,120]
[380359802,1755704148555,-1323.38,0.00030136,120]
[380359803,1755704148602,-400.0,0.00030136,120]
[380359804,1755704148652,-1711.86,0.00030136,120]
[380359805,1755704148701,-400.0,0.00030136,120]
[380359806,1755704148750,-1247.11,0.00030136,120]
[380359807,1755704148801,-1529.7,0.00030136,120]
[380359808,1755704148850,-1203.94,0.00030136,120]
[380359809,1755704148902,-400.0,0.00030136,120]
[380359810,1755704148950,-400.0,0.00030136,120]
[380359811,1755704149001,-400.0,0.00030136,120]
[380359812,1755704149055,-686.73,0.00030136,120]
[380359813,1755704149112,-1038.41,0.00030136,120]
[380359814,1755704149171,-599.44,0.00030136,120]
[380359815,1755704149227,-400.0,0.00030136,120]
[380359816,1755704149281,-594.6,0.00030136,120]
[380359817,1755704149341,-1151.24,0.00030136,120]
[380359818,1755704149397,-898.16,0.00030136,120]
[380359819,1755704149452,-1524.89,0.00030136,120]
[380359820,1755704149507,-1071.06,0.00030136,120]
[380359821,1755704149561,-1508.56,0.00030136,120]
[380359822,1755704149614,-2157.99,0.00030136,120]
[380359823,1755704149672,-400.0,0.00030136,120]
[380359824,1755704149726,-638.08,0.00030136,120]
[380359825,1755704149782,-958.36,0.00030136,120]
[380359826,1755704149832,-467.02,0.00030136,120]
[380359827,1755704149886,-400.0,0.00030136,120]
[380359828,1755704149939,-400.0,0.00030136,120]
[380359829,1755704149995,-533.16,0.00030136,120]
[380359830,1755704150048,-479.94,0.00030136,120]
[380359831,1755704150103,-400.0,0.00030136,120]
[380359832,1755704150155,-415.41,0.00030136,120]
[380359833,1755704150210,-400.0,0.00030136,120]
[380359834,1755704150266,-961.35,0.00030136,120]
[380359835,1755704150323,-1556.63,0.00030136,120]
[380359836,1755704150380,-400.0,0.00030136,120]
[380359837,1755704150434,-400.0,0.00030136,120]
[380359838,1755704150484,-400.0,0.00030136,120]
[380359839,1755704150537,-400.0,0.00030136,120]
[380359840,1755704150587,-1388.72,0.00030136,120]
[380359841,1755704150640,-1000.0,0.00030136,120]
[380359842,1755704150689,-500.0,0.00030136,120]
[380359843,1755704150742,-500.0,0.00030136,120]
[380359844,1755704150792,-1020.24,0.00030136,120]
[380359845,1755704150847,-400.0,0.00030136,120]
[380359846,1755704150895,-500.0,0.00030136,120]
[380359847,1755704150947,-1321.35,0.00030136,120]
[380359848,1755704150996,-1119.32,0.00030136,120]
[380359849,1755704151049,-500.0,0.00030136,120]
[380359850,1755704151101,-756.19,0.00030136,120]
[380359851,1755704151155,-500.0,0.00030136,120]
[380359852,1755704151214,-1212.88,0.00030136,120]
[380359853,1755704151273,-500.0,0.00030136,120]
[380359854,1755704151330,-500.0,0.00030136,120]
[380359855,1755704151385,-500.0,0.00030136,120]
[380359856,1755704151438,-500.0,0.00030136,120]
[380359857,1755704151491,-235.78538276,0.00030136,120]
[380359858,1755704151544,-1378.26,0.00030136,120]
[380359859,1755704151594,-2593.96,0.00030136,120]
[380359860,1755704151642,-400.0,0.00030136,120]
[380359861,1755704151687,-411.19,0.00030136,120]
[380359862,1755704151736,-1400.33,0.00030136,120]
[380359863,1755704151781,-860.25,0.00030136,120]
[380359864,1755704151829,-400.0,0.00030136,120]
[380359865,1755704151877,-1247.29,0.00030136,120]
[380359866,1755704151927,-425.86134652,0.00030136,120]
[380359867,1755704151975,-856.88,0.00030136,120]
[380359868,1755704152028,-400.0,0.00030136,120]
[380359869,1755704152078,-621.24,0.00030136,120]
[380359870,1755704152129,-1086.36,0.00030136,120]
[380359871,1755704152178,-400.0,0.00030136,120]
[380359872,1755704152230,-954.58,0.00030136,120]
[380359873,1755704152278,-1122.13,0.00030136,120]
[380359874,1755704152329,-400.0,0.00030136,120]
[380359875,1755704152376,-400.0,0.00030136,120]
[380359876,1755704152422,-467.99,0.00030136,120]
[380359877,1755704152476,-400.0,0.00030136,120]
[380359878,1755704152528,-776.74,0.00030136,120]
[380359879,1755704152579,-745.56,0.00030136,120]
[380359880,1755704152626,-400.72,0.00030136,120]
[380359881,1755704152671,-400.0,0.00030136,120]
[380359882,1755704152717,-400.0,0.00030136,120]
[380359883,1755704152762,-400.0,0.00030136,120]
[380359884,1755704152810,-668.78,0.00030136,120]
[380359885,1755704152856,-1890.76,0.00030136,120]
[380359886,1755704152903,-808.26,0.00030136,120]
[380359887,1755704152948,-400.0,0.00030136,120]
[380359888,1755704152994,-1437.42,0.00030136,120]
[380359889,1755704153040,-400.0,0.00030136,120]
[380359890,1755704153089,-408.52,0.00030136,120]
[380359891,1755704153138,-400.0,0.00030136,120]
[380359892,1755704153194,-995.33,0.00030136,120]
[380359893,1755704153252,-400.0,0.00030136,120]
[380359894,1755704153308,-607.8,0.00030136,120]
[380359895,1755704153361,-400.0,0.00030136,120]
[380359896,1755704153413,-1879.06,0.00030136,120]
[380359897,1755704153467,-550.3,0.00030136,120]
[380359898,1755704153517,-584.92,0.00030136,120]
[380359899,1755704153570,-1095.24,0.00030136,120]
[380359900,1755704153623,-1130.3,0.00030136,120]
[380359901,1755704153676,-400.0,0.00030136,120]
[380359902,1755704153727,-400.0,0.00030136,120]